fUST/lending_fUST_20260425
["ID","MTS","AMOUNT","RATE_DAILY","PERIOD"]
[421122555,1777097443320,-855.85101772,0.000158,2]
[421122556,1777097443330,-10234.50656144,0.000158,2]
[421122557,1777097443339,-1773.38288418,0.000158,2]
[421122558,1777097443348,-151.0,0.000158,2]
[421122559,1777097443357,-864.0,0.00015835,2]
[421122560,1777097443367,-500.0,0.0001589,2]
[421122561,1777097443376,-500.0,0.0001589,2]
[421122562,1777097443385,-500.0,0.0001589,2]
[421122563,1777097443394,-500.0,0.0001589,2]
[421122564,1777097443404,-500.0,0.0001589,2]
[421122565,1777097443413,-500.0,0.0001589,2]
[421122566,1777097443423,-500.0,0.0001589,2]
[421122567,1777097443432,-500.0,0.0001589,2]
[421122568,1777097443442,-500.0,0.0001589,2]
[421122569,1777097443451,-500.0,0.0001589,2]
[421122570,1777097443461,-500.0,0.0001589,2]
[421122571,1777097443472,-500.0,0.0001589,2]
[421122572,1777097443482,-500.0,0.0001589,2]
[421122573,1777097443492,-500.0,0.0001589,2]
[421122574,1777097443501,-500.0,0.0001589,2]
[421122575,1777097443511,-500.0,0.0001589,2]
[421122576,1777097443520,-500.0,0.0001589,2]
[421122577,1777097443530,-500.0,0.0001589,2]
[421122578,1777097443540,-500.0,0.0001589,2]
[421122579,1777097443549,-500.0,0.0001589,2]
[421122580,1777097443559,-500.0,0.0001589,2]
[421122581,1777097443765,-500.0,0.0001589,2]
[421122582,1777097443774,-500.0,0.0001589,2]
[421122583,1777097443783,-500.0,0.0001589,2]
[421122584,1777097443793,-500.0,0.0001589,2]
[421122585,1777097443802,-250.6767531,0.0001589,2]
[421122586,1777097443811,-2000.0,0.00015893,2]
[421122587,1777097443820,-2000.0,0.00015893,2]
[421122588,1777097443829,-2000.0,0.00015893,2]
[421122589,1777097443838,-2000.0,0.00015893,2]
[421122590,1777097443848,-2000.0,0.00015893,2]
[421122591,1777097443857,-2000.0,0.00015893,2]
[421122592,1777097443867,-2000.0,0.00015893,2]
[421122593,1777097443876,-2000.0,0.00015893,2]
[421122594,1777097443885,-2000.0,0.00015893,2]
[421122595,1777097443894,-2000.0,0.00015893,2]
[421122596,1777097443904,-2000.0,0.00015893,2]
[421122597,1777097443913,-2000.0,0.00015893,2]
[421122598,1777097443923,-2000.0,0.00015893,2]
[421122599,1777097443932,-2000.0,0.00015893,2]
[421122600,1777097443941,-2000.0,0.00015893,2]
[421122601,1777097443950,-2000.0,0.00015893,2]
[421122602,1777097443960,-2000.0,0.00015893,2]
[421122603,1777097443969,-2000.0,0.00015893,2]
[421122604,1777097443978,-269.8304402,0.00015893,2]
[421122605,1777097444229,-1730.1695598,0.00015893,2]
[421122606,1777097444239,-2000.0,0.00015893,2]
[421122607,1777097444248,-2000.0,0.00015893,2]
[421122608,1777097444257,-2000.0,0.00015893,2]
[421122609,1777097444267,-516.01393044,0.00015893,2]
[421122610,1777097444594,-8534.96824305,0.000129,2]
[421122611,1777097444611,-420.8168224,0.000129,2]
[421122612,1777097444623,-2487.33349402,0.000129,2]
[421122614,1777097446260,-1660.18223883,0.00012771,2]
[421122615,1777097446270,-821.0,0.00012893,2]
[421122616,1777097446280,-6976.23220386,0.000129,2]
[421122617,1777097446289,-297.795142,0.00013699,2]
[421122618,1777097446298,-297.795142,0.00013699,2]
[421122619,1777097446308,-297.795142,0.00013699,2]
[421122620,1777097446317,-297.795142,0.00013699,2]
[421122621,1777097446326,-297.795142,0.00013699,2]
[421122622,1777097446336,-297.795142,0.00013699,2]
[421122623,1777097446344,-297.795142,0.00013699,2]
[421122624,1777097446354,-297.795142,0.00013699,2]
[421122625,1777097446363,-297.795142,0.00013699,2]
[421122626,1777097446373,-297.795142,0.00013699,2]
[421122627,1777097446382,-297.795142,0.00013699,2]
[421122628,1777097446391,-297.795142,0.00013699,2]
[421122629,1777097446400,-297.795142,0.00013699,2]
[421122630,1777097446410,-297.795142,0.00013699,2]
[421122631,1777097446419,-297.795142,0.00013699,2]
[421122632,1777097446428,-297.795142,0.00013699,2]
[421122633,1777097446438,-297.795149,0.00013699,2]
[421122634,1777097446448,-18419.35076333,0.00013857,2]
[421122635,1777097446457,-1483.98606956,0.00015893,2]
[421122636,1777097446466,-10234.50656144,0.000159,2]
[421122637,1777097446475,-1773.38288418,0.000159,2]
[421122638,1777097446484,-535.49723586,0.00015928,30]
[421122639,1777097446492,-170.2057859,0.0001593,18]
[421122640,1777097446501,-336.68023689,0.00015946,30]
[421122641,1777097446511,-950.0,0.00015966,2]
[421122642,1777097446521,-950.0,0.00015966,2]
[421122643,1777097446530,-950.0,0.00015966,2]
[421122644,1777097446539,-950.0,0.00015966,2]
[421122645,1777097446548,-950.0,0.00015966,2]
[421122646,1777097446558,-950.0,0.00015966,2]
[421122647,1777097446567,-950.0,0.00015966,2]
[421122648,1777097446576,-950.0,0.00015966,2]
[421122649,1777097446586,-950.0,0.00015966,2]
[421122650,1777097446595,-597.0,0.00015966,2]
[421122651,1777097446604,-218.36411882,0.00016,2]
[421122652,1777097446614,-500.0,0.00016,2]
[421122653,1777097446623,-1046.0,0.00016,2]
[421122654,1777097446632,-3000.0,0.00016,2]
[421122655,1777097446642,-2654.30868103,0.00016008,2]
[421122656,1777097446652,-3000.0,0.0001601,2]
[421122657,1777097446661,-3000.0,0.0001602,2]
[421122658,1777097446670,-3000.0,0.0001603,2]
[421122659,1777097446680,-3000.0,0.0001604,2]
[421122660,1777097446690,-500.0,0.00016043,2]
[421122661,1777097446700,-500.0,0.00016043,2]
[421122662,1777097446709,-3000.0,0.0001605,2]
[421122663,1777097446719,-5000.0,0.0001606,2]
[421122664,1777097446728,-3000.0,0.0001606,2]
[421122665,1777097446738,-3000.0,0.0001607,2]
[421122666,1777097446747,-3000.0,0.0001608,2]
[421122667,1777097446756,-2000.0,0.0001608,2]
[421122668,1777097446766,-2000.0,0.0001608,2]
[421122669,1777097446775,-2000.0,0.0001608,2]
[421122670,1777097446784,-2000.0,0.0001608,2]
[421122671,1777097446793,-2000.0,0.0001608,2]
[421122672,1777097446803,-2000.0,0.0001608,2]
[421122673,1777097446812,-2000.0,0.0001608,2]
[421122674,1777097446822,-2000.0,0.0001608,2]
[421122675,1777097446831,-2000.0,0.0001608,2]
[421122676,1777097446840,-2000.0,0.0001608,2]
[421122677,1777097446851,-2000.0,0.0001608,2]
[421122678,1777097446860,-2000.0,0.0001608,2]
[421122679,1777097446870,-2000.0,0.0001608,2]
[421122680,1777097446880,-2000.0,0.0001608,2]
[421122681,1777097446940,-2000.0,0.0001608,2]
[421122682,1777097446950,-2000.0,0.0001608,2]
[421122683,1777097446959,-2000.0,0.0001608,2]
[421122684,1777097446970,-3000.0,0.0001609,2]
[421122685,1777097446979,-160.0,0.00016099,2]
[421122686,1777097446989,-201.32615326,0.00016099,2]
[421122687,1777097446998,-500.0,0.000161,2]
[421122688,1777097447008,-500.0,0.000161,2]
[421122689,1777097447018,-500.0,0.000161,2]
[421122690,1777097447027,-279131.9573438,0.000161,2]
[421122691,1777097447037,-10234.50656144,0.000161,2]
[421122692,1777097447047,-1773.38288418,0.000161,2]
[421122693,1777097447057,-3000.0,0.000161,2]
[421122694,1777097447066,-3000.0,0.0001611,2]
[421122695,1777097447076,-500.0,0.00016113,2]
[421122696,1777097447086,-500.0,0.00016113,2]
[421122697,1777097447095,-3000.0,0.0001612,2]
[421122698,1777097447104,-500.0,0.00016122,2]
[421122699,1777097447114,-3000.0,0.0001613,2]
[421122700,1777097447124,-150.01,0.00016137,2]
[421122701,1777097447133,-3000.0,0.0001614,2]
[421122702,1777097447143,-535.49723586,0.00016146,30]
[421122703,1777097447152,-3000.0,0.0001615,2]
[421122704,1777097447162,-3000.0,0.0001616,2]
[421122705,1777097447172,-3000.0,0.0001617,2]
[421122706,1777097447182,-636139.18960801,0.0001617,2]
[421122707,1777097447204,-300.0,0.00013972,2]
[421122708,1777097447213,-77761.87504167,0.0001617,2]
[421122840,1777098632107,-518.271,0.00011113,2]
[421122842,1777098632117,-325.40209408,0.00011152,2]
[421122844,1777098632126,-2813.99668188,0.00011339,2]
[421122845,1777098632136,-354.85817666,0.00011339,2]
[421122846,1777098632146,-734.16859552,0.00011654,2]
[421122847,1777098632155,-300.0,0.00011667,2]
[421122848,1777098632164,-1200.0,0.00011667,2]
[421122849,1777098632174,-230.0,0.00011667,2]
[421122850,1777098632184,-300.0,0.00011668,2]
[421122851,1777098632194,-300.0,0.00011668,2]
[421122852,1777098632203,-300.0,0.00011668,2]
[421122853,1777098632212,-300.0,0.00011668,2]
[421122854,1777098632222,-300.0,0.00011668,2]
[421122855,1777098632232,-300.0,0.00011668,2]
[421122856,1777098632242,-300.0,0.00011668,2]
[421122857,1777098632252,-300.0,0.00011668,2]
[421122858,1777098632261,-300.0,0.00011668,2]
[421122859,1777098632271,-300.0,0.00011668,2]
[421122860,1777098632280,-300.0,0.00011668,2]
[421122861,1777098632289,-300.0,0.00011668,2]
[421122862,1777098632299,-300.0,0.00011668,2]
[421122863,1777098632308,-300.0,0.00011668,2]
[421122864,1777098632317,-300.0,0.00011668,2]
[421122865,1777098632326,-600.0,0.00011668,2]
[421122866,1777098632336,-1409.0,0.00012107,2]
[421122867,1777098632346,-1848.28770853,0.00012107,2]
[421122868,1777098632358,-362.71229147,0.00012107,2]
[421122869,1777098632367,-646.0,0.00012107,2]
[421122870,1777098632376,-720.0,0.00012835,2]
[421122871,1777098632386,-821.0,0.00012893,2]
[421122872,1777098632395,-2873.02134501,0.000129,2]
[421122873,1777098632413,-384.15552416,0.000129,2]
[421122878,1777098639208,-8254.91735792,0.000129,2]
[421122879,1777098639217,-7477.70159849,0.000129,2]
[421122892,1777098643480,-4034.39262859,0.000129,2]
[421122893,1777098643490,-500.0,0.00013108,2]
[421122894,1777098643499,-383.97447101,0.00013152,2]
[421122895,1777098643508,-151.5,0.00013424,2]
[421122896,1777098643518,-831.0,0.00013515,2]
[421122897,1777098643527,-168.05,0.0001359,2]
[421122898,1777098643536,-500.0,0.00013698,2]
[421122899,1777098643546,-500.0,0.00013698,2]
[421122900,1777098643555,-500.0,0.00013698,2]
[421122901,1777098643564,-500.0,0.00013698,2]
[421122902,1777098643573,-500.0,0.00013698,2]
[421122903,1777098643582,-500.0,0.00013698,2]
[421122904,1777098643592,-500.0,0.00013698,2]
[421122905,1777098643601,-500.0,0.00013698,2]
[421122906,1777098643610,-174.19414693,0.00013698,2]
[421122907,1777098643619,-179.9820018,0.00013699,2]
[421122908,1777098643628,-1000.0,0.00013699,2]
[421122909,1777098643638,-450.82155042,0.00013699,2]
[421122910,1777098643647,-11512.09422708,0.00013939,2]
[421122911,1777098643656,-160.0,0.00013972,2]
[421122912,1777098643665,-160.0,0.00013972,2]
[421122913,1777098643674,-168.05,0.0001402,2]
[421122914,1777098643684,-864.0,0.00014118,2]
[421122915,1777098643693,-821.0,0.00014164,2]
[421122916,1777098643702,-168.05,0.0001445,2]
[421122917,1777098643711,-168.05,0.0001488,2]
[421122918,1777098643720,-703.02501399,0.00014938,2]
[421122919,1777098643729,-8945.0226321,0.00015,2]
[421122925,1777098646879,-500.0,0.00011339,2]
[421122927,1777098646888,-500.0,0.00011339,2]
[421122928,1777098646898,-626.54400908,0.00011339,2]
[421122929,1777098646908,-500.0,0.00011339,2]
[421122930,1777098646917,-500.0,0.00011339,2]
[421122931,1777098646926,-500.0,0.00011339,2]
[421122932,1777098646935,-500.0,0.00011339,2]
[421122933,1777098646945,-500.0,0.00011339,2]
[421122934,1777098646954,-1565.29058339,0.00015,2]
[421122935,1777098646963,-456.25680803,0.00015038,2]
[421122936,1777098646972,-1409.0,0.00015107,2]
[421122937,1777098646982,-2211.0,0.00015107,2]
[421122938,1777098646991,-646.0,0.00015107,2]
[421122939,1777098647001,-1753.38639802,0.00015131,2]
[421122940,1777098647013,-253.7425319,0.00015131,2]
[421122941,1777098647031,-927.19930424,0.00015131,2]
[421122942,1777098647151,-8577.76599292,0.00015131,2]
[421122943,1777098647160,-442.54684794,0.00015152,2]
[421122944,1777098647170,-8863.68999141,0.000152,2]
[421122945,1777098647181,-1646.62322408,0.000152,2]
[421122946,1777098647190,-7498.91853659,0.000153,2]
[421123024,1777099832468,-1940.98668951,9.961e-05,2]
[421123029,1777099838856,-1918.91719117,9.961e-05,2]
[421123030,1777099838867,-1838.55106816,0.00010062,2]
[421123031,1777099838876,-312.98362581,0.00010424,2]
[421123032,1777099838886,-163.25,0.00011,30]
[421123033,1777099838896,-1126.0,0.00011138,2]
[421123034,1777099838905,-389.88063259,0.00011139,2]
[421123035,1777099838915,-416.53774104,0.00011139,2]
[421123038,1777099839257,-83.46225896,0.00011139,2]
[421123039,1777099839268,-564.30771681,0.00011139,2]
[421123040,1777099839278,-500.0,0.00011139,2]
[421123041,1777099839288,-500.0,0.00011139,2]
[421123042,1777099839298,-500.0,0.00011139,2]
[421123043,1777099839307,-500.0,0.00011139,2]
[421123044,1777099839317,-237.37827981,0.0001114,2]
[421123045,1777099839328,-384.9201,0.0001114,2]
[421123046,1777099839347,-2226.55529396,0.0001114,2]
[421123062,1777099848711,-3773.03511997,0.0001114,2]
[421123063,1777099848723,-500.4252,0.0001114,2]
[421123064,1777099848769,-944.85128539,0.0001114,2]
[421123069,1777099849146,-484.14,0.0001114,2]
[421123070,1777099849198,-5325.28182261,0.0001114,2]
[421123072,1777099870534,287.03,0.0001,30]
[421123073,1777099870567,244.39,0.0001,30]
[421123100,1777100481680,-319.0,0.0001,2]
[421123101,1777100481699,-319.0,0.0001,2]
[421123102,1777100481710,-4362.0,0.0001,2]
[421123174,1777101031812,-899.02365167,9.752e-05,2]
[421123208,1777101040309,-4100.97634833,9.752e-05,2]
[421123209,1777101040319,-306.7239533,9.901e-05,2]
[421123210,1777101040329,-11048.38486879,0.0001,2]
[421123211,1777101040338,-300.0,0.00010199,2]
[421123212,1777101040348,-300.0,0.00010199,2]
[421123213,1777101040357,-300.0,0.00010199,2]
[421123214,1777101040367,-300.0,0.00010199,2]
[421123215,1777101040376,-300.0,0.00010199,2]
[421123216,1777101040385,-300.0,0.00010199,2]
[421123217,1777101040395,-300.0,0.00010199,2]
[421123218,1777101040404,-300.0,0.00010199,2]
[421123219,1777101040414,-300.0,0.00010199,2]
[421123220,1777101040423,-300.0,0.00010199,2]
[421123221,1777101040433,-300.0,0.00010199,2]
[421123222,1777101040442,-300.0,0.00010199,2]
[421123223,1777101040451,-300.0,0.00010199,2]
[421123224,1777101040461,-300.0,0.00010199,2]
[421123225,1777101040470,-300.0,0.00010199,2]
[421123227,1777101040479,-600.0,0.00010402,2]
[421123229,1777101040489,-414.617,0.00010819,2]
[421123231,1777101040498,-2819.84792119,0.0001094,2]
[421123232,1777101040509,-841.52588397,0.0001094,2]
[421123234,1777101040525,-6855.87471478,0.0001094,2]
[421123237,1777101040536,-1525.57541363,0.0001094,2]
[421123247,1777101042977,-652.25,0.0001094,2]
[421123248,1777101042990,-10342.34652909,0.0001094,2]
[421123249,1777101043002,-453.0,0.0001094,2]
[421123250,1777101043087,-617.46398293,0.0001094,2]
[421123256,1777101046140,-15177.04182989,0.0001094,2]
[421123257,1777101046205,-984.7182516,0.0001094,2]
[421123258,1777101055957,154.10452119,0.00010999,30]
[421123445,1777102232054,-272.91644281,9.999e-05,2]
[421123447,1777102232065,-99.2808244,0.0001,2]
[421123449,1777102232077,-211.92864983,0.0001,2]
[421123451,1777102232087,-696.13779988,0.0001,2]
[421123453,1777102232099,-21385.72128489,0.0001,2]
[421123455,1777102232111,-2167.19413998,0.0001,2]
[421123457,1777102232123,-500.82288191,0.0001,2]
[421123459,1777102232134,-542.26520368,0.0001,2]
[421123461,1777102232146,-438.23496928,0.0001,2]
[421123477,1777102232255,-2189.8891602,0.0001,2]
[421123722,1777102238649,-15020.41825672,0.0001,2]
[421123727,1777102240608,-1236.39766523,0.0001,2]
[421123787,1777102246666,-6292.2066766,0.0001,2]
[421123788,1777102281126,-940.27624659,9.9e-05,2]
[421123789,1777102281155,-300.0,9.999e-05,2]
[421123790,1777102310291,-1078.06227255,0.0001,2]
[421123894,1777103432434,-799.9146967,9.535e-05,2]
[421124056,1777103438753,-1918.53080946,9.535e-05,2]
[421124058,1777103438764,-307.98528475,9.656e-05,2]
[421124060,1777103438774,-300.0,9.899e-05,2]
[421124062,1777103438783,-1200.0,9.899e-05,2]
[421124063,1777103438793,-191.04150997,9.899e-05,2]
[421124065,1777103438802,-46684.54869926,9.9e-05,2]
[421124067,1777103438814,-2359.57002048,9.9e-05,2]
[421124069,1777103438825,-59879.82092245,9.9e-05,2]
[421124071,1777103438837,-2610.7451462,9.9e-05,2]
[421124073,1777103438847,-1157.44007125,0.0001,2]
[421124094,1777103440909,-2243.08747746,0.0001,2]
[421124095,1777103440963,-341.44406342,0.0001,2]
[421124096,1777103440974,-7457.91225139,0.0001,2]
[421124097,1777103440986,-1616.37051482,0.0001,2]
[421124166,1777103446999,-1179.66999669,0.0001,2]
[421124167,1777103447106,-454.96465952,0.0001,2]
[421124168,1777103447118,-4764.46914279,0.0001,2]
[421124169,1777103447160,-1477.83725015,0.0001,2]
[421124170,1777103447268,-1504.3502,0.0001,2]
[421124171,1777103447280,-18167.13165892,0.0001,2]
[421124263,1777104081817,-331.694,9.702e-05,2]
[421124264,1777104081847,-301.82557905,9.727e-05,2]
[421124265,1777104081877,-676.01827544,9.8e-05,2]
[421124266,1777104081936,-2449.98176434,9.899e-05,2]
[421124274,1777104111180,-1309.53785449,9.799e-05,2]
[421124285,1777104631737,-360.34205459,9.799e-05,2]
[421124286,1777104631747,-295.78906747,9.849e-05,2]
[421124287,1777104631756,-232.21093253,9.899e-05,2]
[421124296,1777104638094,-6883.18568281,9.899e-05,2]
[421124309,1777104640240,-452.28667416,9.899e-05,2]
[421124350,1777104646485,-1781.99688115,9.899e-05,2]
[421124352,1777104878999,1000.0,0.00010999,30]
[421124369,1777104910002,1000.0,0.0001,20]
[421124388,1777104990275,-321.97772359,7e-05,2]
[421124389,1777105057886,-311.38571959,6.93e-05,2]
[421124390,1777105057908,-700.02227641,7e-05,2]
[421124392,1777105071439,-294.49328612,8.349e-05,2]
[421124460,1777105832013,-692.69588294,8.95e-05,2]
[421124461,1777105832024,-77.31266144,9.04e-05,2]
[421124462,1777105832068,-183.66139047,9.04e-05,2]
[421124463,1777105832078,-294.01405408,9.177e-05,2]
[421124464,1777105832087,-298.81,9.505e-05,2]
[421124465,1777105832096,-199.76607874,9.761e-05,2]
[421124469,1777105838214,-125.37558396,9.761e-05,2]
[421124471,1777105838224,-152.0,9.857e-05,7]
[421124472,1777105838234,-152.0,9.857e-05,7]
[421124473,1777105838243,-300.0,9.898e-05,2]
[421124474,1777105838252,-1550.15441604,9.899e-05,2]
[421124475,1777105838378,-46783.3979013,9.899e-05,2]
[421124476,1777105838387,-7137.34970162,9.9e-05,2]
[421124477,1777105838398,-57109.89594092,9.9e-05,2]
[421124504,1777105843406,-72545.09390467,9.9e-05,2]
[421124505,1777105843419,-7628.6594506,9.9e-05,2]
[421124506,1777105843471,-302.62139999,9.9e-05,2]
[421124507,1777105843483,-400.56570525,9.9e-05,2]
[421124508,1777105843495,-1335.28898699,9.9e-05,2]
[421124509,1777105843507,-2682.75126377,9.9e-05,2]
[421124510,1777105843593,-4587.0657763,9.9e-05,2]
[421124513,1777105847402,-3483.72897309,9.9e-05,2]
[421124515,1777105847844,-5324.46837274,9.9e-05,2]
[421124517,1777105847900,-89729.75684651,9.9e-05,2]
[421124518,1777105847975,-17703.52406791,9.9e-05,2]
[421124519,1777105847988,-4851.51574512,9.9e-05,2]
[421124535,1777105881939,-300.0,9.899e-05,2]
[421124536,1777105881962,-300.0,9.9e-05,2]
[421124537,1777105881978,-516.26159289,9.9e-05,2]
[421124618,1777106787937,7018.0,0.00011,30]
[421124619,1777106882876,-612.0,9.135e-05,2]
[421124666,1777107032362,-291.13377299,9.576e-05,2]
[421124668,1777107032371,-239.048,9.702e-05,2]
[421124670,1777107032381,-1233.81822701,9.8e-05,2]
[421124763,1777107038643,-33288.52164934,9.8e-05,2]
[421124768,1777107040902,-1197.10362736,9.8e-05,2]
[421124769,1777107040956,-6718.501097,9.8e-05,2]
[421124770,1777107040967,-623.8679506,9.8e-05,2]
[421124771,1777107040978,-1200.36558608,9.8e-05,2]
[421124792,1777107046678,-80431.56773177,9.8e-05,2]
[421124793,1777107046702,-3402.88325849,9.8e-05,2]
[421124794,1777107046732,-6546.29956112,9.8e-05,2]
[421124796,1777107046998,-10540.35432289,9.8e-05,2]
[421124797,1777107047053,-1771.49898391,9.8e-05,2]
[421124798,1777107047064,-1040.29697163,9.8e-05,2]
[421124799,1777107047284,-7854.30538363,9.8e-05,2]
[421124800,1777107047295,-3353.461082,9.8e-05,2]
[421124801,1777107047306,-400.0,9.8e-05,2]
[421124802,1777107047317,-9742.05342553,9.8e-05,2]
[421124888,1777107661869,-1311.47993469,7.6e-05,2]
[421124891,1777107946587,-3957.38165863,7.6e-05,2]
[421124892,1777107946610,-285.31109754,8.553e-05,2]
[421125026,1777108239408,-2459.70380738,9.411e-05,2]
[421125038,1777108241037,-1540.29619262,9.411e-05,2]
[421125039,1777108241046,-279.60487558,9.459e-05,2]
[421125040,1777108241055,-224.694,9.506e-05,2]
[421125041,1777108241064,-292.0,9.696e-05,2]
[421125042,1777108241073,-300.0,9.696e-05,2]
[421125043,1777108241082,-300.0,9.696e-05,2]
[421125044,1777108241091,-1172.65794539,9.697e-05,2]
[421125045,1777108241102,-27.34205461,9.697e-05,2]
[421125046,1777108241111,-300.0,9.697e-05,2]
[421125047,1777108241120,-500.0,9.698e-05,2]
[421125048,1777108241129,-464.64541168,9.698e-05,2]
[421125049,1777108241138,-500.0,9.698e-05,2]
[421125050,1777108241147,-125.87206039,9.698e-05,2]
[421125051,1777108241158,-374.12793961,9.698e-05,2]
[421125052,1777108241167,-398.60908662,9.698e-05,2]
[421125073,1777108247061,-197.56183156,9.698e-05,2]
[421125074,1777108247070,-500.0,9.698e-05,2]
[421125075,1777108247080,-414.28397504,9.698e-05,2]
[421125076,1777108247089,-500.0,9.698e-05,2]
[421125077,1777108247099,-353.61904522,9.698e-05,2]
[421125079,1777108247386,-326.26416366,9.698e-05,2]
[421125080,1777108247396,-500.0,9.698e-05,2]
[421125081,1777108247406,-514.74632545,9.698e-05,2]
[421125082,1777108247416,-2603.43253517,9.699e-05,2]
[421125084,1777108247431,-47396.56746483,9.699e-05,2]
[421125086,1777108247440,-17320.26423261,9.7e-05,2]
[421125113,1777109431789,-384.768375,7.849e-05,2]
[421125115,1777109431800,-163.23252058,7.928e-05,2]
[421125117,1777109431809,-19.76527882,8.776e-05,2]
[421125279,1777109438571,-259.65400504,8.776e-05,2]
[421125280,1777109438582,-179.755,9.407e-05,2]
[421125281,1777109438592,-500.0,9.495e-05,2]
[421125282,1777109438602,-313.51592305,9.495e-05,2]
[421125283,1777109438613,-500.0,9.495e-05,2]
[421125284,1777109438626,-500.0,9.495e-05,2]
[421125285,1777109438636,-500.0,9.495e-05,2]
[421125286,1777109438647,-500.0,9.495e-05,2]
[421125287,1777109438657,-323.81189417,9.495e-05,2]
[421125288,1777109438667,-500.0,9.495e-05,2]
[421125289,1777109438678,-500.0,9.495e-05,2]
[421125290,1777109438689,-500.0,9.495e-05,2]
[421125291,1777109438699,-500.0,9.495e-05,2]
[421125292,1777109438709,-500.0,9.495e-05,2]
[421125293,1777109438719,-500.0,9.495e-05,2]
[421125294,1777109438730,-203.2336718,9.495e-05,2]
[421125295,1777109438741,-500.0,9.495e-05,2]
[421125296,1777109438751,-500.0,9.495e-05,2]
[421125297,1777109438762,-500.0,9.495e-05,2]
[421125298,1777109438773,-500.0,9.495e-05,2]
[421125299,1777109438783,-500.0,9.495e-05,2]
[421125300,1777109438793,-572.60927454,9.495e-05,2]
[421125301,1777109438803,-500.0,9.495e-05,2]
[421125302,1777109438814,-500.0,9.495e-05,2]
[421125303,1777109438824,-500.0,9.495e-05,2]
[421125304,1777109438835,-500.0,9.495e-05,2]
[421125305,1777109438846,-500.0,9.495e-05,2]
[421125306,1777109438856,-500.0,9.495e-05,2]
[421125307,1777109438867,-500.0,9.495e-05,2]
[421125308,1777109438877,-500.0,9.495e-05,2]
[421125309,1777109438887,-500.0,9.495e-05,2]
[421125310,1777109438899,-500.0,9.495e-05,2]
[421125311,1777109438909,-500.0,9.495e-05,2]
[421125312,1777109438921,-2900.0,9.495e-05,2]
[421125313,1777109438931,-306.30207001,9.496e-05,2]
[421125314,1777109438941,-30000.0,9.496e-05,2]
[421125315,1777109438951,-723893.59174662,9.497e-05,2]
[421125316,1777109438962,-767771.63541689,9.497e-05,2]
[421125327,1777109440381,-1000.0,9.497e-05,2]
[421125337,1777109443074,-3416.08201038,9.497e-05,2]
[421125342,1777109446238,-2399.16763074,9.497e-05,2]
[421125344,1777109481738,-300.0,9.496e-05,2]
[421125345,1777109481771,-596.44435216,9.497e-05,2]
[421125346,1777109511296,-120.245,9.307e-05,2]
[421125347,1777109511320,-59.51,9.307e-05,2]
[421125358,1777110632047,-399.86526697,8.936e-05,2]
[421125471,1777110646715,-737.10227097,8.936e-05,2]
[421125472,1777110646724,-273.83089819,9.118e-05,2]
[421125473,1777110646733,-47.41365486,9.209e-05,2]
[421125527,1777111262670,-1289.21506781,7.524e-05,2]
[421125528,1777111262686,-1613.30493219,7.524e-05,2]
[421125529,1777111262696,-1289.21506781,7.6e-05,2]
[421125530,1777111538283,-362.98345217,6.792e-05,2]
[421125531,1777111538377,-274.34852937,6.792e-05,2]
[421125577,1777111832411,-523.60051223,6.59e-05,2]
[421125579,1777111832421,-284.18819119,6.623e-05,2]
[421125581,1777111832431,-4983.40248648,6.657e-05,2]
[421125585,1777111832465,-16.59751352,6.657e-05,2]
[421125587,1777111832475,-463.0,6.723e-05,2]
[421125589,1777111832484,-5000.0,6.724e-05,2]
[421125591,1777111832494,-369.31243269,6.999e-05,2]
[421125593,1777111832503,-500.0,6.999e-05,2]
[421125595,1777111832512,-500.0,6.999e-05,2]
[421125597,1777111832522,-500.0,6.999e-05,2]
[421125599,1777111832532,-500.0,6.999e-05,2]
[421125601,1777111832541,-500.0,6.999e-05,2]
[421125603,1777111832550,-500.0,6.999e-05,2]
[421125605,1777111832559,-309.77306908,6.999e-05,2]
[421125607,1777111832570,-500.0,6.999e-05,2]